fUST/lending_fUST_20250604
["ID","MTS","AMOUNT","RATE_DAILY","PERIOD"]
[364203997,1749040254248,-440.0,0.00021652,2]
[364203999,1749040254257,-2263.01,0.00021652,2]
[364204001,1749040254267,-2129.27,0.00021652,2]
[364204003,1749040254278,-440.0,0.00021652,2]
[364204005,1749040254289,-573.28,0.00021652,2]
[364204007,1749040254299,-4671.55,0.00021652,2]
[364204009,1749040254308,-612.36,0.00021652,2]
[364204011,1749040254317,-647.57,0.00021652,2]
[364204013,1749040254326,-576.89,0.00021652,2]
[364204015,1749040254336,-151.0,0.00021865,2]
[364204017,1749040254347,-151.0,0.00021865,2]
[364204019,1749040254356,-151.0,0.00021865,2]
[364204021,1749040254366,-151.0,0.00021865,2]
[364204023,1749040254375,-151.0,0.00021865,2]
[364204025,1749040254385,-151.0,0.000219,3]
[364204027,1749040254394,-630.68,0.00021917,2]
[364204029,1749040254404,-1157.86,0.00021917,2]
[364204031,1749040254413,-1222.61,0.00021917,2]
[364204033,1749040254423,-2230.4,0.00021917,2]
[364204035,1749040254432,-440.0,0.00021917,2]
[364204037,1749040254442,-440.0,0.00021917,2]
[364204039,1749040254451,-626.59,0.00021917,2]
[364204041,1749040254461,-305.031614,0.00021917,2]
[364204043,1749040254471,-210.685247,0.00021917,2]
[364204045,1749040254480,-305.031614,0.00021917,2]
[364204047,1749040254490,-151.000001,0.00021917,2]
[364204049,1749040254499,-3119.9,0.00021917,2]
[364204051,1749040254510,-210.685247,0.00021917,2]
[364204053,1749040254520,-440.0,0.00021917,2]
[364204055,1749040254530,-1205.96,0.00021925,2]
[364204057,1749040254541,-639.52,0.00021925,2]
[364204059,1749040254551,-918.8,0.00021926,2]
[364204061,1749040254561,-440.0,0.00021926,2]
[364204063,1749040254570,-2263.01,0.00021926,2]
[364204065,1749040254580,-2129.27,0.00021926,2]
[364204067,1749040254591,-440.0,0.00021926,2]
[364204069,1749040254600,-573.28,0.00021926,2]
[364204071,1749040254610,-4671.55,0.00021926,2]
[364204073,1749040254619,-612.36,0.00021926,2]
[364204075,1749040254629,-647.57,0.00021926,2]
[364204077,1749040254639,-576.89,0.00021926,2]
[364204078,1749040254647,-151.0,0.00021927,2]
[364204080,1749040254657,-256.9390526,0.00022,2]
[364204082,1749040254667,-256.12305451,0.00022062,2]
[364204084,1749040254677,-5000.0,0.00022062,2]
[364204086,1749040254688,-630.68,0.00022191,2]
[364204088,1749040254697,-1157.86,0.00022191,2]
[364204090,1749040254707,-1222.61,0.00022191,2]
[364204092,1749040254716,-2230.4,0.00022191,2]
[364204094,1749040254726,-180.6,0.00022191,2]
[364204096,1749040254735,-332.81,0.00022191,2]
[364204099,1749040254745,-626.59,0.00022191,2]
[364204100,1749040254755,-3119.9,0.00022191,2]
[364204102,1749040254764,-210.0,0.00022191,2]
[364204104,1749040254774,-1205.96,0.00022199,2]
[364204106,1749040254783,-639.52,0.00022199,2]
[364204108,1749040254793,-918.8,0.000222,2]
[364204110,1749040254803,-440.0,0.000222,2]
[364204112,1749040254812,-2263.01,0.000222,2]
[364204114,1749040254822,-2129.27,0.000222,2]
[364204116,1749040254832,-440.0,0.000222,2]
[364204118,1749040254844,-4671.55,0.000222,2]
[364204120,1749040254853,-573.28,0.000222,2]
[364204122,1749040254862,-612.36,0.000222,2]
[364204124,1749040254872,-647.57,0.000222,2]
[364204126,1749040254882,-576.89,0.000222,2]
[364204128,1749040254892,-1100.0,0.0002226,2]
[364204130,1749040254901,-151.0,0.000223,6]
[364204132,1749040254912,-1282.19,0.000223,7]
[364204134,1749040254922,-215.0738,0.00022335,2]
[364204136,1749040254931,-151.0,0.000224,7]
[364204138,1749040254941,-630.68,0.00022465,2]
[364204140,1749040254950,-1157.86,0.00022465,2]
[364204142,1749040254960,-1222.61,0.00022465,2]
[364204144,1749040254970,-2230.4,0.00022465,2]
[364204146,1749040254979,-626.59,0.00022465,2]
[364204148,1749040254989,-3119.9,0.00022465,2]
[364204149,1749040254999,-1205.96,0.00022473,2]
[364204152,1749040255009,-151.0,0.00022473,7]
[364204154,1749040255019,-151.0,0.00022473,7]
[364204156,1749040255029,-151.0,0.00022473,7]
[364204158,1749040255039,-639.52,0.00022473,2]
[364204160,1749040255048,-918.8,0.00022474,2]
[364204161,1749040255058,-440.0,0.00022474,2]
[364204163,1749040255068,-2263.01,0.00022474,2]
[364204165,1749040255077,-2129.27,0.00022474,2]
[364204167,1749040255087,-463.02,0.00022474,2]
[364204169,1749040255098,-4671.55,0.00022474,2]
[364204171,1749040255108,-573.28,0.00022474,2]
[364204173,1749040255117,-612.36,0.00022474,2]
[364204175,1749040255127,-647.57,0.00022474,2]
[364204177,1749040255137,-576.89,0.00022474,2]
[364204179,1749040255147,-151.0,0.000226,9]
[364204181,1749040255157,-630.76473521,0.00022739,2]
[364204183,1749040255167,-1158.03,0.00022739,2]
[364204185,1749040255177,-1222.62900931,0.00022739,2]
[364204187,1749040255186,-2230.51,0.00022739,2]
[364204189,1749040255198,-626.7,0.00022739,2]
[364204191,1749040255209,-3120.05,0.00022739,2]
[364204193,1749040255218,-1205.96,0.00022747,2]
[364204195,1749040255228,-639.52,0.00022747,2]
[364204197,1749040255238,-918.8,0.00022748,2]
[364204199,1749040255248,-440.0,0.00022748,2]
[364204201,1749040255257,-2263.01,0.00022748,2]
[364204203,1749040255267,-2129.27,0.00022748,2]
[364204205,1749040255277,-4671.55,0.00022748,2]
[364204207,1749040255287,-573.28,0.00022748,2]
[364204209,1749040255297,-612.36,0.00022748,2]
[364204211,1749040255307,-647.57,0.00022748,2]
[364204213,1749040255317,-576.89,0.00022748,2]
[364204215,1749040255326,-888.301911,0.00022814,3]
[364204217,1749040255336,-151.0,0.000229,7]
[364204219,1749040255346,-440.0,0.000229,7]
[364204221,1749040255356,-5024.47646434,0.00023,2]
[364204223,1749040255365,-1205.96,0.00023021,2]
[364204225,1749040255375,-639.52,0.00023021,2]
[364204226,1749040255384,-918.8,0.00023022,2]
[364204228,1749040255395,-440.0,0.00023022,2]
[364204230,1749040255405,-2263.01,0.00023022,2]
[364204232,1749040255415,-2129.27,0.00023022,2]
[364204235,1749040255425,-4671.55,0.00023022,2]
[364204237,1749040255435,-573.28,0.00023022,2]
[364204239,1749040255444,-612.36,0.00023022,2]
[364204240,1749040255454,-647.57,0.00023022,2]
[364204242,1749040255463,-576.89,0.00023022,2]
[364204253,1749040255557,-160.0,0.0002303,3]
[364204255,1749040255568,-19186.22,0.00023056,9]
[364204257,1749040255577,-4439.65,0.00023056,9]
[364204259,1749040255587,-151.0,0.000231,8]
[364204261,1749040255597,-200.0,0.000231,7]
[364204263,1749040255607,-151.0,0.000231,5]
[364204265,1749040255616,-2200.0,0.00023191,2]
[364204267,1749040255626,-1206.1655488,0.00023295,2]
[364204269,1749040255636,-639.75,0.00023295,2]
[364204271,1749040255646,-919.0,0.00023296,2]
[364204273,1749040255656,-325.16,0.00023296,2]
[364204275,1749040255666,-2263.1954098,0.00023296,2]
[364204278,1749040255675,-2129.39552325,0.00023296,2]
[364204279,1749040255685,-4671.61,0.00023296,2]
[364204281,1749040255695,-573.28,0.00023296,2]
[364204283,1749040255706,-612.48,0.00023296,2]
[364204285,1749040255716,-647.78980114,0.00023296,2]
[364204288,1749040255725,-577.05,0.00023296,2]
[364204290,1749040255735,-29875.16,0.000233,2]
[364204292,1749040255744,-225.813228,0.000233,7]
[364204293,1749040255754,-1100.0,0.00023356,2]
[364204296,1749040255764,-4000.0,0.00023436,4]
[364204298,1749040255773,-1002.11898638,0.000235,2]
[364204300,1749040255783,-1344.78,0.000235,2]
[364204302,1749040255792,-564.95,0.000235,14]
[364204304,1749040255801,-319.77554574,0.000235,2]
[364204306,1749040255811,-305.031614,0.000235,7]
[364204308,1749040255821,-210.685247,0.000235,7]
[364204310,1749040255830,-305.031614,0.000235,7]
[364204312,1749040255839,-210.685247,0.000235,7]
[364204313,1749040255849,-319.7755457,0.00023563,2]
[364204315,1749040255858,-160653.05,0.000236,7]
[364204317,1749040255868,-437.51241704,0.000236,7]
[364204319,1749040255877,-151.0,0.000236,10]
[364204321,1749040255887,-151.0,0.000236,7]
[364204323,1749040255896,-151.0,0.000236,7]
[364204326,1749040255907,-151.0,0.000236,7]
[364204327,1749040255917,-151.0,0.000236,2]
[364204329,1749040255926,-151.0,0.000236,7]
[364204332,1749040255937,-151.0,0.000236,7]
[364204334,1749040255948,-151.0,0.000236,7]
[364204335,1749040255958,-151.0,0.000236,7]
[364204337,1749040255968,-314.98208564,0.000236,7]
[364204339,1749040255978,-305.031614,0.000236,7]
[364204342,1749040255989,-210.685247,0.000236,7]
[364204344,1749040256000,-305.031614,0.000236,7]
[364204345,1749040256009,-210.685247,0.000236,7]
[364204347,1749040256019,-319.7755457,0.00023626,2]
[364204349,1749040256028,-25000.0,0.0002366,2]
[364204351,1749040256038,-319.7755457,0.00023688,2]
[364204353,1749040256048,-35346.84724118,0.000237,7]
[364204355,1749040256058,-151.0,0.000237,7]
[364204357,1749040256068,-151.0,0.000237,6]
[364204359,1749040256077,-223.0315306,0.00023704,2]
[364204361,1749040256087,-1259.91161307,0.00023719,9]
[364204363,1749040256098,-319.7755457,0.00023751,2]
[364204365,1749040256108,-800.0,0.00023768,2]
[364204368,1749040256117,-800.0,0.00023789,2]
[364204370,1749040256127,-59126.7129984,0.00023793,2]
[364204372,1749040256138,-210059.86802902,0.00023799,7]
[364204382,1749040256234,-273.2477065,0.00016438,2]
[364204384,1749040256247,-166.7522935,0.00016438,2]
[364204386,1749040256256,-440.0,0.00016712,2]
[364204388,1749040256265,-440.0,0.00016986,2]
[364204390,1749040256274,-8.84621225,0.00016994,2]
[364204405,1749040256411,-267.773431,0.00016438,2]
[364204407,1749040256424,-160.54925784,0.00016438,2]
[364204409,1749040256433,-1613.36,0.00016438,2]
[364204411,1749040256443,-481.78,0.00016438,2]
[364204413,1749040256453,-1613.36,0.00016712,2]
[364204415,1749040256462,-481.78,0.00016712,2]
[364204417,1749040256472,-1613.36,0.00016986,2]
[364204419,1749040256481,-300.0,0.00016993,2]
[364204421,1749040256492,-431.15378775,0.00016994,2]
[364204423,1749040256501,-430.0,0.00016994,2]
[364204425,1749040256511,-440.0,0.0001726,2]
[364204427,1749040256521,-1613.36,0.0001726,2]
[364204429,1749040256530,-440.0,0.00017268,2]
[364204431,1749040256540,-295.2,0.00017534,2]
[364204433,1749040256549,-1613.36,0.00017534,2]
[364204435,1749040256559,-440.0,0.00017542,2]
[364204437,1749040256569,-400.0,0.00017816,2]
[364204439,1749040256578,-274.0,0.0001856,2]
[364204441,1749040256588,-4076.64549162,0.000189,2]
[364204443,1749040256600,-4076.64549155,0.00019107,2]
[364204445,1749040256610,-4076.64549155,0.00019314,2]
[364204447,1749040256619,-160.0,0.00019779,2]
[364204449,1749040256628,-381.8137471,0.00019779,2]
[364205387,1749041310952,163.704397,0.00013699,2]
[364205394,1749041363879,212.90465545,0.00025,30]
[364205398,1749041381428,200.0,0.00025,120]
[364205399,1749041386934,300.0,0.00025,30]
[364205419,1749041431914,-253.197739,0.00015777,2]
[364205420,1749041431924,-300.0,0.00016159,2]
[364205422,1749041431934,-269.31894141,0.00016159,2]
[364205425,1749041432182,-30.68105859,0.00016159,2]
[364205426,1749041432192,-1200.0,0.00016159,2]
[364205427,1749041432201,-14388.05127143,0.0001616,2]
[364205428,1749041432210,-203.8651526,0.00016338,2]
[364205429,1749041432220,-430.0,0.00016438,2]
[364205430,1749041432229,-430.0,0.00016438,2]
[364205431,1749041432239,-430.0,0.00016438,2]
[364205432,1749041432249,-195.28618288,0.00016438,2]
[364205433,1749041432259,-150.68672132,0.00016438,2]
[364205434,1749041432268,-430.0,0.00016438,2]
[364205435,1749041432278,-430.0,0.00016438,2]
[364205436,1749041432287,-507.3846617,0.00016438,2]
[364205437,1749041432297,-436.61590364,0.00016438,2]
[364205438,1749041432306,-435.61415668,0.00016438,2]
[364205439,1749041432316,-430.0,0.00016438,2]
[364205440,1749041432325,-435.43897391,0.00016438,2]
[364205441,1749041432335,-430.0,0.00016438,2]
[364205442,1749041432345,-430.0,0.00016438,2]
[364205443,1749041432355,-376.57186126,0.00016438,2]
[364205444,1749041432364,-430.0,0.00016438,2]
[364205445,1749041432374,-154.69531629,0.00016438,2]
[364205446,1749041432384,-358.46152586,0.00016438,2]
[364205447,1749041432393,-430.0,0.00016438,2]
[364205448,1749041432404,-430.0,0.00016438,2]
[364205449,1749041432415,-431.25050939,0.00016438,2]
[364205450,1749041432424,-430.0,0.00016438,2]
[364205451,1749041432434,-430.0,0.00016438,2]
[364205452,1749041432444,-430.0,0.00016438,2]
[364205453,1749041432454,-430.0,0.00016438,2]
[364205454,1749041432464,-507.83572784,0.00016438,2]
[364205455,1749041432487,-440.0,0.00016438,2]
[364205456,1749041432498,-151.65,0.00016438,2]
[364205457,1749041432508,-440.0,0.00016438,2]
[364205458,1749041432518,-430.0,0.00016438,2]
[364205459,1749041432528,-506.5,0.00016438,2]
[364205460,1749041432538,-430.0,0.00016438,2]
[364205461,1749041432548,-430.0,0.00016438,2]
[364205462,1749041432561,-430.0,0.00016438,2]
[364205463,1749041432574,-440.0,0.00016438,2]
[364205464,1749041432585,-430.0,0.00016438,2]
[364205465,1749041432596,-400.0,0.00016438,2]
[364205466,1749041432607,-430.0,0.00016438,2]
[364205467,1749041432618,-430.0,0.00016438,2]
[364205468,1749041432629,-430.0,0.00016438,2]
[364205469,1749041432641,-440.0,0.00016438,2]
[364205470,1749041432653,-500.0,0.00016438,2]
[364205471,1749041432663,-440.0,0.00016438,2]
[364205472,1749041432673,-440.0,0.00016438,2]
[364205473,1749041432683,-430.0,0.00016438,2]
[364205474,1749041432694,-430.0,0.00016438,2]
[364205475,1749041432705,-430.0,0.00016438,2]
[364205476,1749041432714,-440.0,0.00016438,2]
[364205477,1749041432725,-430.0,0.00016438,2]
[364205478,1749041432735,-430.0,0.00016438,2]
[364205479,1749041432745,-430.0,0.00016438,2]
[364205480,1749041432755,-430.0,0.00016438,2]
[364205481,1749041432766,-430.91064601,0.00016438,2]
[364205482,1749041432776,-474.11396663,0.00016438,2]
[364205483,1749041432786,-430.0,0.00016438,2]
[364205484,1749041432796,-440.0,0.00016438,2]
[364205485,1749041432806,-490.0,0.00016438,2]
[364205486,1749041432816,-440.0,0.00016438,2]
[364205487,1749041432826,-430.0,0.00016438,2]
[364205488,1749041432836,-430.0,0.00016438,2]
[364205489,1749041432846,-1252.63,0.00016438,2]
[364205490,1749041432856,-440.0,0.00016438,2]
[364205491,1749041432866,-189.31241294,0.00016438,2]
[364205492,1749041432876,-430.0,0.00016438,2]
[364205493,1749041432886,-430.0,0.00016438,2]
[364205494,1749041432896,-430.0,0.00016438,2]
[364205495,1749041432907,-294.88729475,0.00016438,2]
[364205496,1749041432917,-1161.32,0.00016438,2]
[364205497,1749041432927,-173.65366645,0.00016438,2]
[364205498,1749041432937,-430.0,0.00016438,2]
[364205499,1749041432947,-430.0,0.00016438,2]
[364205500,1749041432957,-440.0,0.00016438,2]
[364205501,1749041432967,-440.0,0.00016438,2]
[364205502,1749041432981,-430.0,0.00016438,2]
[364205503,1749041432992,-194.49008992,0.00016438,2]
[364205504,1749041433002,-481.32024323,0.00016438,2]
[364205505,1749041433013,-430.0,0.00016438,2]
[364205506,1749041433024,-430.0,0.00016438,2]
[364205507,1749041433035,-430.0,0.00016438,2]
[364205508,1749041433046,-509.95,0.00016438,2]
[364205509,1749041433056,-430.0,0.00016438,2]
[364205510,1749041433067,-430.0,0.00016438,2]
[364205511,1749041433077,-2227.24,0.00016438,2]
[364205512,1749041433088,-316.30073148,0.00016438,2]
[364205513,1749041433103,-113.69926852,0.00016438,2]
[364205514,1749041433113,-430.0,0.00016438,2]
[364205515,1749041433122,-440.0,0.00016438,2]
[364205516,1749041433133,-1139.31,0.00016438,2]
[364205517,1749041433142,-500.0,0.00016438,2]
[364205518,1749041433153,-430.0,0.00016438,2]
[364205519,1749041433164,-440.0,0.00016438,2]
[364205520,1749041433174,-430.0,0.00016438,2]
[364205521,1749041433183,-276.49072648,0.00016438,2]
[364205522,1749041433196,-153.50927352,0.00016438,2]
[364205523,1749041433207,-205.83444728,0.00016438,2]
[364205524,1749041433219,-224.16555272,0.00016438,2]
[364205525,1749041433228,-430.0,0.00016438,2]
[364205526,1749041433238,-440.0,0.00016438,2]
[364205527,1749041433248,-440.0,0.00016438,2]
[364205528,1749041433257,-430.0,0.00016438,2]
[364205529,1749041433267,-440.0,0.00016438,2]
[364205530,1749041433277,-440.0,0.00016438,2]
[364205531,1749041433286,-444.09600726,0.00016438,2]
[364205532,1749041433297,-430.0,0.00016438,2]
[364205533,1749041433306,-430.0,0.00016438,2]
[364205534,1749041433317,-430.0,0.00016438,2]
[364205535,1749041433327,-430.0,0.00016438,2]
[364205536,1749041433338,-430.0,0.00016438,2]
[364205537,1749041433348,-440.0,0.00016438,2]
[364205538,1749041433358,-446.2529394,0.00016438,2]
[364205539,1749041433368,-478.9817261,0.00016438,2]
[364205540,1749041433378,-440.0,0.00016438,2]
[364205541,1749041433388,-440.0,0.00016438,2]
[364205542,1749041433398,-430.0,0.00016438,2]
[364205543,1749041433410,-529.26,0.00016438,2]
[364205544,1749041433421,-444.02955047,0.00016438,2]
[364205545,1749041433431,-502.87760963,0.00016438,2]
[364205546,1749041433441,-430.0,0.00016438,2]
[364205547,1749041433452,-430.0,0.00016438,2]
[364205548,1749041433462,-430.0,0.00016438,2]
[364205549,1749041433472,-104.36674055,0.00016438,2]
[364205550,1749041433485,-325.63325945,0.00016438,2]
[364205551,1749041433495,-162.49371585,0.00016438,2]
[364205552,1749041433508,-277.50628415,0.00016438,2]
[364205553,1749041433518,-37.04064268,0.00016438,2]
[364205554,1749041433531,-419.05422882,0.00016438,2]
[364205555,1749041433541,-440.0,0.00016438,2]
[364205556,1749041433552,-441.97511921,0.00016438,2]
[364205557,1749041433569,-430.0,0.00016438,2]
[364205558,1749041433579,-490.0,0.00016438,2]
[364205559,1749041433589,-440.0,0.00016438,2]
[364205560,1749041433600,-440.0,0.00016438,2]
[364205561,1749041433610,-262.94899886,0.00016438,2]
[364205562,1749041433623,-167.05100114,0.00016438,2]
[364205563,1749041433634,-440.0,0.00016438,2]
[364205564,1749041433645,-445.17908778,0.00016438,2]
[364205565,1749041433656,-440.0,0.00016438,2]
[364205566,1749041433667,-471.06,0.00016438,2]
[364205567,1749041433677,-440.0,0.00016438,2]
[364205568,1749041433688,-2250.49865239,0.00016438,2]
[364205569,1749041434940,394.23342054,0.00025,30]
[364205627,1749041437985,-4138.99134761,0.00016438,2]
[364205629,1749041437995,-444.20666118,0.00016438,2]
[364205631,1749041438005,-453.19006864,0.00016438,2]
[364205633,1749041438014,-426.20587558,0.00016438,2]
[364205635,1749041438026,-14.28395493,0.00016438,2]
[364205637,1749041438036,-440.0,0.00016438,2]
[364205639,1749041438046,-430.0,0.00016438,2]
[364205641,1749041438056,-451.8900728,0.00016438,2]
[364205643,1749041438066,-460.63438417,0.00016438,2]
[364205646,1749041438076,-440.0,0.00016438,2]
[364205648,1749041438086,-430.0,0.00016438,2]
[364205650,1749041438095,-430.0,0.00016438,2]
[364205651,1749041438104,-440.0,0.00016438,2]
[364205653,1749041438114,-244.24332796,0.00016438,2]
[364205655,1749041438124,-1246.34,0.00016438,2]
[364205657,1749041438133,-430.0,0.00016438,2]
[364205659,1749041438143,-444.05612593,0.00016438,2]
[364205662,1749041438152,-430.0,0.00016438,2]
[364205664,1749041438162,-822.55102671,0.00016438,2]
[364205666,1749041438175,-1223.71897329,0.00016438,2]
[364205668,1749041438187,-448.37525743,0.00016438,2]
[364205670,1749041438196,-441.33120913,0.00016438,2]
[364205672,1749041438206,-430.0,0.00016438,2]
[364205674,1749041438215,-554.78,0.00016438,2]
[364205676,1749041438226,-430.0,0.00016438,2]
[364205678,1749041438235,-430.0,0.00016438,2]
[364205680,1749041438245,-454.04085624,0.00016438,2]
[364205682,1749041438254,-440.0,0.00016438,2]
[364205684,1749041438264,-430.0,0.00016438,2]
[364205686,1749041438274,-430.0,0.00016438,2]
[364205688,1749041438283,-452.94259567,0.00016438,2]
[364205690,1749041438293,-440.0,0.00016438,2]
[364205692,1749041438303,-451.7783343,0.00016438,2]
[364205694,1749041438312,-430.0,0.00016438,2]
[364205696,1749041438322,-440.0,0.00016438,2]
[364205698,1749041438331,-440.0,0.00016438,2]
[364205700,1749041438341,-440.0,0.00016438,2]
[364205702,1749041438351,-440.0,0.00016438,2]
[364205704,1749041438360,-435.5747463,0.00016438,2]
[364205706,1749041438370,-430.0,0.00016438,2]
[364205708,1749041438380,-2407.99,0.00016438,2]
[364205710,1749041438391,-430.44351872,0.00016438,2]
[364205712,1749041438401,-447.50886659,0.00016438,2]
[364205714,1749041438411,-430.0,0.00016438,2]
[364205716,1749041438420,-440.0,0.00016438,2]
[364205718,1749041438430,-430.0,0.00016438,2]
[364205720,1749041438439,-430.0,0.00016438,2]
[364205722,1749041438449,-6366.56282247,0.00016438,2]
[364205725,1749041438462,-41164.912845,0.00016438,2]
[364205727,1749041438472,-440.0,0.00016712,2]
[364205729,1749041438482,-440.0,0.00016712,2]
[364205731,1749041438493,-506.5,0.00016712,2]
[364205733,1749041438502,-440.0,0.00016712,2]
[364205735,1749041438512,-440.0,0.00016712,2]
[364205737,1749041438522,-440.0,0.00016712,2]
[364205739,1749041438532,-440.0,0.00016712,2]
[364205741,1749041438542,-420.0,0.00016712,2]
[364205743,1749041438551,-420.0,0.00016712,2]
[364205745,1749041438565,-440.0,0.00016712,2]
[364205747,1749041438577,-1252.63,0.00016712,2]
[364205749,1749041438587,-440.0,0.00016712,2]
[364205751,1749041438596,-1161.32,0.00016712,2]
[364205752,1749041438607,-440.0,0.00016712,2]
[364205754,1749041438617,-440.0,0.00016712,2]
[364205756,1749041438627,-509.95,0.00016712,2]
[364205758,1749041438638,-2227.24,0.00016712,2]
[364205761,1749041438648,-1139.31,0.00016712,2]
[364205762,1749041438660,-420.0,0.00016712,2]
[364205765,1749041438670,-184.42574367,0.00016712,2]
[364205767,1749041438680,-440.0,0.00016712,2]
[364205769,1749041438690,-440.0,0.00016712,2]
[364205771,1749041438700,-440.0,0.00016712,2]
[364205773,1749041438710,-440.0,0.00016712,2]
[364205774,1749041438719,-440.0,0.00016712,2]
[364205776,1749041438733,-420.0,0.00016712,2]
[364205778,1749041438742,-440.0,0.00016712,2]
[364205780,1749041438752,-529.26,0.00016712,2]
[364205782,1749041438762,-440.0,0.00016712,2]
[364205784,1749041438770,-440.0,0.00016712,2]
[364205786,1749041438780,-440.0,0.00016712,2]
[364205788,1749041438789,-196.03147471,0.00016712,2]
[364205790,1749041438799,-440.0,0.00016712,2]
[364205792,1749041438809,-418.74079701,0.00016712,2]
[364205794,1749041438819,-471.06,0.00016712,2]
[364205796,1749041438829,-416.37873897,0.00016712,2]
[364205798,1749041438838,-6389.49,0.00016712,2]
[364205800,1749041438847,-440.0,0.00016712,2]
[364205802,1749041438856,-440.0,0.00016712,2]
[364205804,1749041438865,-401.85079157,0.00016712,2]
[364205806,1749041438874,-399.57903346,0.00016712,2]
[364205809,1749041438886,-846.76096654,0.00016712,2]
[364205811,1749041438896,-2046.27,0.00016712,2]
[364205813,1749041438907,-440.0,0.00016712,2]
[364205815,1749041438919,-440.0,0.00016712,2]
[364205817,1749041438928,-440.0,0.00016712,2]
[364205819,1749041438938,-420.0,0.00016712,2]
[364205821,1749041438948,-440.0,0.00016712,2]
[364205823,1749041438957,-420.0,0.00016712,2]
[364205825,1749041438967,-1116.9099868,0.00016712,2]
[364205827,1749041438978,-1291.0800132,0.00016712,2]
[364205829,1749041438990,-440.0,0.00016712,2]
[364205831,1749041439000,-155.21130184,0.00016891,2]
[364205833,1749041439009,-307.58,0.00016976,3]
[364205835,1749041439019,-764.04,0.00016976,3]
[364205837,1749041439028,-259.83,0.00016981,3]
[364205839,1749041439038,-779.54,0.00016981,3]
[364205841,1749041439048,-584.39,0.00016981,3]
[364205843,1749041439058,-292.2,0.00016981,3]
[364205845,1749041439068,-876.62,0.00016981,3]
[364205847,1749041439077,-440.0,0.00016986,2]
[364205849,1749041439087,-440.0,0.00016986,2]
[364205851,1749041439097,-506.5,0.00016986,2]
[364205853,1749041439107,-440.0,0.00016986,2]
[364205855,1749041439117,-440.0,0.00016986,2]
[364205857,1749041439126,-440.0,0.00016986,2]
[364205859,1749041439136,-440.0,0.00016986,2]
[364205862,1749041439146,-410.0,0.00016986,2]
[364205864,1749041439155,-1252.63,0.00016986,2]
[364205866,1749041439166,-440.0,0.00016986,2]
[364205868,1749041439176,-1161.32,0.00016986,2]
[364205870,1749041439187,-440.0,0.00016986,2]
[364205872,1749041439200,-440.0,0.00016986,2]
[364205874,1749041439210,-509.95,0.00016986,2]
[364205876,1749041439220,-2227.24,0.00016986,2]
[364205878,1749041439230,-1139.31,0.00016986,2]
[364205880,1749041439239,-410.0,0.00016986,2]
[364205882,1749041439249,-440.0,0.00016986,2]
[364205884,1749041439258,-440.0,0.00016986,2]
[364205887,1749041439268,-259.58166395,0.00016986,2]
[364205889,1749041439278,-440.0,0.00016986,2]
[364205891,1749041439288,-440.0,0.00016986,2]
[364205893,1749041439298,-529.26,0.00016986,2]
[364205895,1749041439308,-536.14032308,0.00016986,2]
[364205897,1749041439317,-440.0,0.00016986,2]
[364205899,1749041439327,-440.0,0.00016986,2]